bitfinex-derivatives/quotes_SOLF0:USTF0_20250731
["timestamp","ask_amount","ask_price","bid_price","bid_amount"]
[1753961667926,2.99,181.03,181.01,8.4851]
[1753961668122,2.99,181.03,181.02,2.96]
[1753961668421,7.0148885,181.03,181.02,8.485]
[1753961669325,2.99,181.03,181.02,8.485]
[1753961669728,2.99,181.08,181.05,2.96]
[1753961670025,2.99,181.06,181.05,2.96]
[1753961670225,7.01511659,181.06,181.05,2.96]
[1753961670419,4.02511659,181.06,181.02,3.02116201]
[1753961670621,2.99,181.04,181.02,5.98116201]
[1753961671027,2.99,181.04,181.02,11.50606201]
[1753961671325,2.99,181.04,181.02,8.4849]
[1753961671518,7.00859488,181.03,181.02,8.4849]
[1753961672827,2.99,181.03,181.02,8.4849]
[1753961673029,2.99,181.06,181.04,5.5242]
[1753961673223,4.01922948,181.05,181.04,8.4842]
[1753961673418,7.00922948,181.05,181.04,8.4842]
[1753961675027,7.00922948,181.05,181.04,10.41792365]
[1753961676019,7.00922948,181.05,181.04,8.4842]
[1753961676221,2.99,181.04,181.02,5.5247]
[1753961676424,4.0218712,181.03,181.02,5.5247]
[1753961676624,7.0118712,181.03,181.02,5.5247]
[1753961677729,7.0118712,181.03,181.02,8.4847]
[1753961678534,7.0118712,181.03,181.02,10.41842365]
[1753961678832,4.0218712,181.03,181.02,10.41842365]
[1753961680734,1.93372365,181.08,181.02,10.41842365]
[1753961680735,2.99,181.06,181.05,2.96]
[1753961681036,7.01240809,181.06,181.05,4.89372365]
[1753961681731,7.01240809,181.06,181.05,10.41782365]
[1753961681941,2.99,181.06,181.05,10.41782365]
[1753961682834,2.99,181.06,181.05,8.4841]
[1753961683035,2.99,181.08,181.06,5.5237]
[1753961683235,7.01221008,181.07,181.06,8.4837]
[1753961685240,2.99,181.07,181.06,8.4837]
[1753961685534,2.99,181.07,181.06,2.96]
[1753961687238,2.99,181.07,181.06,8.4838]
[1753961690742,3.19,181.11,181.06,3.02084027]
[1753961691041,4.01919099,181.1,181.09,2.97]
[1753961691244,7.20919099,181.1,181.09,2.97]
[1753961692245,7.20919099,181.1,181.09,8.4927]
[1753961693045,7.20919099,181.1,181.09,2.97]
[1753961693538,7.20919099,181.1,181.08,5.99084027]
[1753961693740,3.19,181.09,181.08,5.99084027]
[1753961694246,3.19,181.09,181.08,11.51404027]
[1753961700163,3.19,181.11,181.09,2.97]
[1753961700460,3.19,181.15,181.11,2.97]
[1753961700656,9.53465005,181.14,181.11,5.5221]
[1753961700856,7.20325005,181.13,181.12,2.97]
[1753961701062,7.20325005,181.13,181.1,3.02084027]
[1753961701262,3.19,181.11,181.1,11.51344027]
[1753961702569,3.19,181.16,181.12,2.97]
[1753961702762,3.19,181.14,181.12,2.97]
[1753961702957,3.19,181.14,181.13,2.97]
[1753961703361,7.20170686,181.14,181.13,2.97]
[1753961703559,4.01170686,181.14,181.13,8.4917]
[1753961703758,3.19,181.17,181.13,8.4917]
[1753961703759,3.19,181.17,181.13,2.97]
[1753961703958,4.01108471,181.16,181.15,2.97]
[1753961704163,7.20108471,181.16,181.15,8.4911]
[1753961704558,4.01108471,181.16,181.15,8.4911]
[1753961704759,100.66,181.22,181.15,8.4911]
[1753961704760,3.19,181.17,181.16,2.97]
[1753961705064,7.20017226,181.17,181.16,2.97]
[1753961705269,3.19,181.19,181.17,2.97]
[1753961705655,3.19,181.19,181.18,5.99084027]
[1753961705861,3.19,181.21,181.19,2.97]
[1753961706469,3.19,181.2,181.18,5.99084027]
[1753961706669,3.19,181.2,181.18,3.02084027]
[1753961706969,3.19,181.24,181.19,2.97]
[1753961707165,378.83193964,181.27,181.2,3.02084027]
[1753961707166,3.19,181.22,181.2,3.02084027]
[1753961707368,5.5182,181.25,181.21,5.5192]
[1753961707565,3.19,181.23,181.22,2.97]
[1753961708668,3.19,181.23,181.22,8.4889]
[1753961708867,3.19,181.24,181.23,2.97]
[1753961711770,3.19,181.24,181.23,8.4886]
[1753961712567,3.19,181.25,181.24,2.97]
[1753961713473,3.19,181.25,181.22,8.53974027]
[1753961713770,3.19,181.25,181.22,5.99084027]
[1753961713966,3.19,181.26,181.2,2.97]
[1753961714372,5.5189,181.22,181.2,2.97]
[1753961714667,3.19,181.21,181.2,2.97]
[1753961715069,5.5189,181.22,181.19,5.5198]
[1753961715372,5.5188,181.23,181.19,3.07]
[1753961715674,3.07,181.22,181.19,3.07]
[1753961716472,3.07,181.2,181.19,3.07]
[1753961716668,100.64,181.29,181.19,3.07]
[1753961716669,3.07,181.24,181.19,3.07]
[1753961717572,5.5192,181.22,181.2,3.07]
[1753961717873,3.07,181.21,181.2,3.07]
[1753961722576,3.07,181.23,181.2,8.5895]
[1753961722777,3.07,181.22,181.21,3.07]
[1753961722972,5.5181,181.25,181.21,3.07]
[1753961723278,3.07,181.23,181.21,5.519]
[1753961723470,3.07,181.23,181.22,3.07]
[1753961723869,3.07,181.24,181.2,3.02084027]
[1753961724065,3.07,181.24,181.21,3.07]
[1753961724266,3.07,181.23,181.21,3.07]
[1753961724675,3.07,181.23,181.22,5.5187]
[1753961724867,3.07,181.23,181.22,8.5887]
[1753961725273,3.07,181.25,181.24,3.07]
[1753961726373,5.5175,181.27,181.23,5.5186]
[1753961726568,5.5175,181.27,181.24,8.5883]
[1753961726569,3.07,181.25,181.24,8.5883]
[1753961726773,3.07,181.26,181.25,3.07]
[1753961726975,7.05992034,181.26,181.25,3.07]
[1753961727370,3.02084027,181.32,181.25,3.07]
[1753961727569,3.07,181.29,181.23,3.07]
[1753961727773,3.02084027,181.28,181.2,3.02084027]
[1753961727969,3.07,181.27,181.24,8.5881]
[1753961728379,3.07,181.27,181.25,8.588]
[1753961728572,5.5174,181.27,181.21,3.07]
[1753961728777,3.07,181.26,181.21,3.07]
[1753961729179,5.5172,181.28,181.24,3.07]
[1753961729380,3.07,181.27,181.25,3.07]
[1753961730476,5.5172,181.28,181.25,3.07]
[1753961730679,5.5176,181.27,181.23,5.5185]
[1753961730977,3.07,181.26,181.23,3.07]
[1753961731382,3.07,181.26,181.24,3.07]
[1753961732674,3.07,181.26,181.25,3.07]
[1753961735983,3.07,181.29,181.23,3.07]
[1753961736179,6.09084027,181.34,181.23,3.07]
[1753961736380,3.07,181.32,181.23,3.07]
[1753961736576,3.97945932,181.31,181.26,3.07]
[1753961736784,3.07,181.3,181.26,182.07442429]
[1753961736980,6.09084027,181.3,181.26,182.07442429]
[1753961737185,3.02084027,181.35,181.26,182.07442429]
[1753961737186,8.5874,181.27,181.26,182.07442429]
[1753961737382,3.07,181.27,181.21,3.07]
[1753961737583,3.07,181.25,181.22,3.07]
[1753961737787,3.07,181.25,181.22,8.5889]
[1753961737987,3.07,181.25,181.23,3.07]
[1753961738385,3.07,181.25,181.24,3.07]
[1753961739987,5.5176,181.27,181.24,3.07]
[1753961739988,3.07,181.27,181.24,3.07]
[1753961740187,3.07,181.31,181.26,3.07]
[1753961740490,3.07,181.29,181.26,3.07]
[1753961741996,3.07,181.29,181.26,8.5875]
[1753961742290,3.07,181.29,181.27,6.09084027]
[1753961742491,3.07,181.29,181.27,3.02084027]
[1753961742690,3.07,181.34,181.28,3.07]
[1753961742885,3.02084027,181.35,181.28,3.07]
[1753961742886,3.98706979,181.33,181.28,3.07]
[1753961743089,3.07,181.31,181.28,3.07]
[1753961744390,3.02084027,181.36,181.29,3.07]
[1753961744594,3.07,181.3,181.28,3.07]
[1753961745391,3.07,181.3,181.28,5.517]
[1753961745594,3.07,181.3,181.29,3.15]
[1753961746095,2.97,181.35,181.3,3.15]
[1753961746289,3.99021968,181.34,181.3,3.15]
[1753961746494,2.97,181.32,181.3,3.15]
[1753961746895,2.97,181.31,181.29,8.53754027]
[1753961747094,2.97,181.35,181.29,3.02084027]
[1753961747296,2.97,181.33,181.3,3.15]
[1753961747498,3.99139038,181.34,181.3,3.15]
[1753961747499,2.97,181.32,181.3,3.15]
[1753961748091,371.2,181.37,181.31,3.02084027]
[1753961748289,2.97,181.33,181.32,3.15]
[1753961749194,2.97,181.35,181.33,3.15]
[1753961749398,6.96464374,181.34,181.33,3.15]
[1753961752197,2.97,181.34,181.33,3.15]
[1753961752398,2.97,181.34,181.33,8.6656]
[1753961753997,2.97,181.34,181.33,3.15]
[1753961754298,2.97,181.35,181.31,3.02084027]
[1753961754497,2.97,181.35,181.31,6.17084027]
[1753961754697,2.97,181.33,181.31,6.17084027]
[1753961754892,2.97,181.33,181.32,3.15]
[1753961755801,2.97,181.34,181.32,3.15]
[1753961756902,2.97,181.34,181.32,5.5159]
[1753961757098,2.97,181.34,181.33,3.15]
[1753961761702,8.4853,181.34,181.33,3.15]
[1753961762505,2.97,181.34,181.33,3.15]
[1753961766608,8.4853,181.34,181.33,3.15]
[1753961767107,2.97,181.34,181.33,3.15]
[1753961768415,2.97,181.34,181.33,8.6656]
[1753961775709,2.97,181.34,181.33,3.15]
[1753961776718,8.4853,181.34,181.33,3.15]
[1753961778218,3.03,181.31,181.27,3.02084027]
[1753961778419,3.03,181.31,181.28,3.21]
[1753961778915,3.03,181.3,181.29,3.21]
[1753961779716,3.03,181.3,181.29,8.7268]
[1753961779913,3.02084027,181.37,181.29,6.23084027]
[1753961780115,3.99014249,181.36,181.3,3.21]
[1753961780318,3.03,181.33,181.32,3.21]
[1753961780521,3.03,181.34,181.32,3.21]
[1753961780818,101.72,181.41,181.32,3.21]
[1753961780819,3.03,181.33,181.32,3.21]
[1753961781319,3.03,181.33,181.32,8.7259]
[1753961784718,5.515,181.35,181.32,8.7259]
[1753961785025,3.03,181.34,181.32,8.7259]
[1753961786226,3.03,181.33,181.32,3.21]
[1753961786414,3.03,181.32,181.27,3.02084027]
[1753961786619,3.03,181.32,181.28,3.21]
[1753961787021,3.03,181.31,181.29,5.5168]
[1753961787222,3.03,181.31,181.29,8.7268]
[1753961788723,3.03,181.31,181.29,5.5168]
[1753961788924,3.03,181.31,181.3,3.21]
[1753961789424,3.03,181.31,181.28,8.727]
[1753961789722,3.03,181.31,181.29,3.21]
[1753961790122,3.03,181.31,181.3,3.21]
[1753961792726,3.03,181.3,181.26,3.21]
[1753961792927,3.03,181.28,181.26,3.21]
[1753961793127,7.01835482,181.27,181.26,3.21]
[1753961793426,3.03,181.27,181.26,3.21]
[1753961796120,3.03,181.27,181.26,8.7277]
[1753961796322,3.03,181.28,181.26,8.7277]
[1753961796627,3.03,181.28,181.27,3.21]
[1753961798832,3.03,181.28,181.26,8.7277]
[1753961799034,3.03,181.27,181.26,3.21]
[1753961801337,3.03,181.27,181.26,8.7277]
[1753961807142,3.03,181.27,181.26,3.21]
[1753961808048,3.03,181.27,181.26,8.7277]
[1753961815649,3.15,181.29,181.27,3.26]
[1753961816153,3.15,181.29,181.28,5.5169]
[1753961816350,3.15,181.29,181.28,8.7769]
[1753961816650,3.15,181.33,181.29,3.26]
[1753961817047,3.15,181.32,181.31,3.26]
[1753961818253,3.15,181.32,181.31,8.7762]
[1753961819854,3.15,181.36,181.3,3.02084027]
[1753961820051,3.15,181.34,181.31,3.26]
[1753961820255,3.15,181.33,181.31,3.26]
[1753961820862,3.15,181.33,181.32,8.7757]
[1753961822655,5.5148,181.36,181.34,3.26]
[1753961822855,3.15,181.35,181.34,3.26]
[1753961823451,3.15,181.35,181.33,8.7755]
[1753961823654,3.15,181.34,181.32,8.7758]
[1753961824655,3.15,181.33,181.29,3.02084027]
[1753961824957,3.9765323,181.32,181.26,3.26]
[1753961825157,3.9763338,181.31,181.25,3.02084027]
[1753961825352,5.5168,181.3,181.26,5.5176]
[1753961825657,3.15,181.29,181.26,3.26]
[1753961826058,3.15,181.28,181.26,8.7777]
[1753961827261,3.15,181.28,181.26,3.26]
[1753961827759,3.02084027,181.32,181.26,3.26]
[1753961828055,3.15,181.3,181.28,3.26]
[1753961828360,3.15,181.29,181.28,3.26]
[1753961828663,3.15,181.33,181.29,3.26]
[1753961828958,3.15,181.31,181.3,3.26]
[1753961829549,3.15,181.31,181.3,8.7765]
[1753961832763,3.15,181.32,181.31,5.5161]
[1753961832960,3.15,181.32,181.31,8.7761]
[1753961834665,3.15,181.32,181.31,3.26]
[1753961835263,7.1289393,181.32,181.27,3.02084027]
[1753961835458,3.26,181.3,181.19,11.0392]
[1753961835763,3.26,181.27,181.24,8.7083]
[1753961836063,3.26,181.27,181.24,3.19]
[1753961836260,3.26,181.27,181.22,3.19]
[1753961836666,5.517,181.29,181.22,3.19]
[1753961836861,3.26,181.26,181.25,5.5179]
[1753961837056,3.26,181.26,181.25,8.7079]
[1753961837261,3.26,181.26,181.25,3.19]
[1753961838263,3.26,181.26,181.24,5.518]
[1753961838465,3.26,181.26,181.23,8.7085]
[1753961839264,8.7778,181.26,181.23,8.7085]
[1753961839468,3.26,181.25,181.24,8.7083]
[1753961843268,5.518,181.25,181.22,5.5188]
[1753961843571,3.26,181.24,181.2,3.19]
[1753961843873,3.26,181.26,181.19,3.02084027]
[1753961844072,5.5182,181.25,181.21,5.5191]
[1753961844367,3.26,181.24,181.22,3.19]
[1753961844767,3.26,181.24,181.22,8.7089]
[1753961845266,3.26,181.24,181.22,5.5189]
[1753961845465,3.26,181.24,181.23,3.19]
[1753961845666,3.26,181.24,181.22,5.5189]
[1753961845667,3.26,181.24,181.22,8.7089]
[1753961846374,5.5184,181.24,181.22,3.19]
[1753961846574,3.26,181.23,181.22,3.19]
[1753961846876,3.26,181.23,181.21,5.5192]
[1753961847077,3.26,181.23,181.21,8.7092]
[1753961848375,6.28084027,181.23,181.16,3.19]
[1753961848578,3.26,181.22,181.16,3.19]
[1753961849381,5.5194,181.21,181.18,5.52]
[1753961849580,3.26,181.2,181.19,3.19]
[1753961850177,3.26,181.26,181.19,3.19]
[1753961850371,3.26,181.26,181.23,3.19]
[1753961851079,3.26,181.26,181.24,3.19]
[1753961851484,3.26,181.27,181.25,3.19]
[1753961853277,3.26,181.27,181.25,8.7078]
[1753961853881,3.26,181.27,181.25,3.19]
[1753961854881,5.5169,181.29,181.22,3.02084027]
[1753961855084,3.26,181.28,181.25,3.19]
[1753961855783,3.26,181.28,181.25,8.7078]
[1753961855980,3.26,181.28,181.26,3.19]
[1753961857189,3.26,181.27,181.24,3.19]
[1753961857477,3.26,181.27,181.21,3.19]
[1753961857782,3.26,181.27,181.22,3.19]
[1753961858682,3.26,181.27,181.21,3.19]
[1753961858982,3.26,181.27,181.15,101.34]
[1753961858983,3.26,181.27,181.23,3.19]
[1753961859884,3.26,181.26,181.23,8.7085]
[1753961860084,3.26,181.26,181.24,3.19]
[1753961860286,3.26,181.26,181.25,3.19]
[1753961860880,3.26,181.26,181.23,5.5185]
[1753961861075,3.26,181.26,181.24,3.19]
[1753961861386,3.26,181.25,181.24,3.19]
[1753961869087,3.26,181.25,181.24,5.5183]
[1753961869388,3.26,181.25,181.24,8.7783]
[1753961872595,3.1,181.25,181.24,3.26]
[1753961873186,8.618,181.25,181.24,3.26]
[1753961873588,3.1,181.25,181.21,3.02084027]
[1753961873783,3.1,181.23,181.22,3.26]
[1753961873990,3.1,181.21,181.2,3.26]
[1753961874187,3.1,181.21,181.2,8.7793]
[1753961875594,3.1,181.23,181.2,8.7793]
[1753961875797,3.1,181.23,181.22,3.26]
[1753961878495,3.1,181.23,181.22,8.7789]
[1753961881000,3.1,181.23,181.22,3.26]
[1753961881487,3.1,181.23,181.22,8.7789]
[1753961884099,3.1,181.23,181.22,3.26]
[1753961885090,3.1,181.23,181.22,8.7789]
[1753961885494,3.1,181.23,181.22,3.26]
[1753961890899,4.00969726,181.23,181.2,3.26]
[1753961891097,3.02084027,181.27,181.2,3.26]
[1753961891098,3.1,181.22,181.2,3.26]
[1753961891286,3.1,181.22,181.2,8.7795]
[1753961891495,3.1,181.22,181.2,3.26]
[1753961892099,3.1,181.22,181.21,3.26]
[1753961892299,8.619,181.22,181.21,3.26]
[1753961893000,3.1,181.21,181.2,3.26]
[1753961893307,3.1,181.21,181.2,8.7795]
[1753961904810,3.1,181.21,181.2,10.70938611]
[1753961905710,3.25,181.26,181.2,1.92988611]
[1753961906008,7.2618561,181.25,181.24,3.14]
[1753961906601,7.2618561,181.25,181.23,7.44838611]
[1753961906811,7.2618561,181.24,181.23,8.6585]
[1753961909818,7.2618561,181.24,181.23,3.14]
[1753961910426,7.2618561,181.24,181.22,3.01494335]
[1753961910626,3.25,181.23,181.22,3.14]
[1753961911226,8.7686,181.23,181.21,3.14]
[1753961911426,3.25,181.22,181.2,3.14]
[1753961911827,3.25,181.22,181.21,3.14]
[1753961913427,3.25,181.26,181.21,3.14]
[1753961913725,3.25,181.24,181.21,3.14]
[1753961913924,3.25,181.22,181.21,3.14]
[1753961914826,3.25,181.22,181.21,8.6591]
[1753961916221,3.25,181.22,181.21,3.14]
[1753961916628,3.25,181.22,181.18,3.01494335]
[1753961916930,3.25,181.22,181.2,3.14]
[1753961917124,8.7692,181.22,181.2,3.14]
[1753961917323,3.25,181.21,181.2,3.14]
[1753961919033,8.7692,181.21,181.2,3.14]
[1753961919219,3.25,181.21,181.19,3.14]
[1753961919626,9.53381057,181.2,181.17,8.6603]
[1753961919926,3.25,181.19,181.18,3.14]
[1753961920929,8.7699,181.19,181.16,8.53564335]
[1753961921135,3.25,181.18,181.17,3.14]
[1753961923332,3.25,181.18,181.17,8.6605]
[1753961923540,5.5197,181.2,181.17,8.6605]
[1753961923835,3.25,181.19,181.18,3.14]
[1753961925039,3.25,181.19,181.18,8.6602]
[1753961925229,3.25,181.19,181.18,8.7202]
[1753961925430,3.25,181.19,181.18,3.2]
[1753961926330,5.5204,181.18,181.15,8.53584335]
[1753961926537,2.97,181.21,181.14,3.2]
[1753961926830,2.97,181.19,181.14,3.2]
[1753961927033,2.97,181.17,181.14,5.5212]
[1753961927330,2.97,181.17,181.15,3.2]
[1753961928040,8.4905,181.17,181.15,3.2]
[1753961928230,2.97,181.16,181.15,3.2]
[1753961928828,3.01494335,181.2,181.11,3.01494335]
[1753961929035,2.97,181.15,181.12,3.2]
[1753961930126,2.97,181.17,181.12,3.2]
[1753961930639,8.4907,181.17,181.12,8.7218]
[1753961930938,2.97,181.16,181.13,3.2]
[1753961932035,2.97,181.16,181.14,3.2]
[1753961932231,2.97,181.15,181.14,3.2]
[1753961935741,8.4911,181.15,181.14,3.2]
[1753961936243,2.97,181.15,181.14,3.2]
[1753961941248,8.4911,181.15,181.14,3.2]
[1753961942249,2.97,181.15,181.14,3.2]
[1753961943047,2.97,181.15,181.14,5.13173864]
[1753961945848,2.97,181.15,181.14,8.7214]
[1753961946046,2.97,181.15,181.14,10.65313864]
[1753961949354,2.97,181.15,181.14,5.13173864]
[1753961950049,5.5208,181.16,181.13,5.5216]
[1753961950354,2.97,181.14,181.13,5.5216]
[1753961950554,2.97,181.14,181.1,100.92]
[1753961950555,5.5217,181.14,181.1,100.92]
[1753961950754,2.97,181.13,181.11,3.2]
[1753961951553,2.97,181.13,181.12,7.45373864]
[1753961951753,2.97,181.13,181.12,10.65373864]
[1753961957955,5.5209,181.16,181.13,5.5215]
[1753961958158,3.02,181.14,181.13,5.5215]
[1753961958558,3.02,181.14,181.13,8.5315]
[1753961959561,3.02,181.14,181.13,10.46323864]
[1753961960462,3.02,181.17,181.14,3.01]
[1753961960657,3.02,181.17,181.16,3.01]
[1753961961958,3.02,181.17,181.15,4.94173864]
[1753961962358,3.02,181.17,181.15,1.93173864]
[1753961962557,1.93173864,181.17,181.13,1.93173864]
[1753961962758,3.02,181.16,181.14,3.01]
[1753961965065,3.02,181.16,181.15,1.93173864]
[1753961965258,3.02,181.16,181.15,4.94173864]
[1753961966366,3.02,181.16,181.15,3.01]
[1753961966561,3.02,181.16,181.15,4.94173864]
[1753961968768,3.02,181.16,181.13,8.5315]
[1753961968963,3.02,181.16,181.13,4.94173864]
[1753961969367,8.5409,181.16,181.13,4.94173864]
[1753961969562,3.02,181.15,181.13,4.94173864]
[1753961970163,3.02,181.14,181.11,4.94173864]
[1753961970363,3.02,181.14,181.12,3.01]
[1753961971368,3.02,181.13,181.12,3.01]
[1753961972664,8.5424,181.11,181.1,3.01]
[1753961972967,3.02,181.11,181.09,1.93173864]
[1753961973164,3.02,181.11,181.05,100.9]
[1753961973165,3.02,181.11,181.08,1.93173864]
[1753961973362,3.02,181.1,181.09,3.01]
[1753961975871,3.02,181.1,181.09,8.5329]
[1753961976269,3.02,181.12,181.09,1.93173864]
[1753961976462,4.60192246,181.18,181.12,3.01]
[1753961976463,3.02,181.17,181.12,3.01]
[1753961976662,3.02,181.16,181.15,4.94173864]
[1753961978376,3.02,181.16,181.15,10.46283864]
[1753961978776,7.61892805,181.23,181.15,3.01700559]
[1753961978977,3.02,181.17,181.16,3.01]
[1753961979574,3.02,181.17,181.16,8.5306]
[1753961986082,3.02,181.17,181.16,3.01]
[1753961986281,3.02,181.17,181.15,6.19700559]
[1753961986487,3.02,181.17,181.15,3.18]
[1753961986885,3.06,181.16,181.13,3.01700559]
[1753961987186,3.06,181.16,181.13,6.19700559]
[1753961987387,3.06,181.16,181.14,3.18]
[1753961988189,3.06,181.15,181.12,3.18]
[1753961988690,3.06,181.13,181.12,3.18]
[1753961990188,3.06,181.18,181.1,3.01700559]
[1753961990386,3.06,181.16,181.13,3.18]
[1753961990588,8.5809,181.16,181.13,3.18]
[1753961990787,3.06,181.15,181.13,3.18]
[1753961990987,3.01700559,181.19,181.13,3.18]
[1753961991194,5.5206,181.17,181.13,5.5215]
[1753961991388,3.06,181.16,181.14,3.18]
[1753961991790,3.06,181.15,181.14,3.18]
[1753961991991,3.06,181.2,181.14,3.18]
[1753961992191,3.06,181.18,181.14,3.18]
[1753961992387,3.06,181.16,181.14,3.18]
[1753961992591,3.06,181.16,181.13,5.5215]
[1753961992795,3.06,181.16,181.15,3.18]
[1753961993294,8.5808,181.16,181.15,3.18]
[1753961993495,3.06,181.16,181.15,3.18]
[1753961993696,3.06,181.19,181.16,3.18]
[1753961993897,3.06,181.17,181.12,3.01700559]
[1753961994598,3.06,181.17,181.13,3.18]
[1753961995297,3.06,181.17,181.15,5.521]
[1753961995500,3.06,181.17,181.16,3.18]
[1753961996994,5.5202,181.18,181.16,3.18]
[1753961997300,3.06,181.17,181.16,3.18]
[1753961997799,3.06,181.17,181.16,8.7008]
[1753961998601,3.06,181.17,181.16,3.18]
[1753961998895,3.06,181.17,181.15,5.521]
[1753961999194,5.5202,181.18,181.15,5.521]
[1753961999397,4.00399475,181.17,181.15,3.18]
[1753961999600,3.06,181.16,181.15,3.18]
[1753962000401,3.06,181.16,181.14,5.5212]
[1753962000598,3.06,181.16,181.14,8.7012]
[1753962002399,5.5208,181.16,181.06,303.06422461]
[1753962002700,3.06,181.15,181.12,3.18]
[1753962003203,5.5208,181.16,181.12,3.18]
[1753962003400,3.06,181.14,181.12,3.18]
[1753962004299,3.06,181.14,181.13,5.5215]
[1753962004600,3.06,181.14,181.13,8.7015]
[1753962005004,5.5208,181.16,181.14,5.5214]
[1753962005301,3.06,181.15,181.14,5.5214]
[1753962006002,3.06,181.15,181.14,8.7014]
[1753962006703,4.60192246,181.21,181.12,3.01700559]
[1753962007006,3.06,181.18,181.17,3.18]
[1753962007400,3.06,181.17,181.1,3.01700559]
[1753962007606,3.06,181.15,181.11,3.18]
[1753962007802,3.06,181.14,181.11,3.18]
[1753962008205,3.06,181.14,181.13,3.18]
[1753962008600,3.06,181.14,181.13,8.7017]
[1753962009509,3.06,181.14,181.13,3.18]
[1753962009696,3.06,181.14,181.12,8.7019]
[1753962010102,3.06,181.14,181.06,192.89061926]
[1753962010103,3.06,181.14,181.13,8.7017]
[1753962010300,3.06,181.16,181.13,3.18]
[1753962010906,3.06,181.16,181.14,5.5214]
[1753962011105,3.06,181.16,181.15,3.18]
[1753962011501,5.5203,181.18,181.15,3.18]
[1753962011708,3.06,181.16,181.13,3.18]
[1753962012010,3.06,181.19,181.13,3.18]
[1753962012208,3.06,181.17,181.14,8.7011]
[1753962012407,3.06,181.17,181.15,3.18]
[1753962012811,3.06,181.17,181.15,5.5211]
[1753962013110,3.06,181.17,181.16,3.18]
[1753962013805,3.06,181.17,181.16,8.7008]
[1753962014615,3.06,181.19,181.17,8.7004]
[1753962014811,3.06,181.18,181.14,3.01700559]
[1753962015313,2.98,181.17,181.16,5.5206]
[1753962015612,2.98,181.17,181.16,8.6006]
[1753962016111,2.98,181.18,181.16,8.6006]
[1753962016307,2.98,181.18,181.17,3.08]
[1753962018209,6.98901319,181.18,181.17,3.08]
[1753962024918,2.98,181.18,181.17,3.08]
[1753962025717,6.99165364,181.18,181.17,3.08]
[1753962029322,12.51185364,181.18,181.17,3.08]
[1753962029926,6.99165364,181.18,181.17,3.08]
[1753962035027,4.01165364,181.18,181.16,3.08]
[1753962035322,6.99165364,181.17,181.16,3.08]
[1753962036024,2.98,181.16,181.15,3.08]
[1753962036224,6.9899434,181.16,181.12,3.08]
[1753962036530,2.98,181.14,181.12,3.08]